[Event "Titled Tuesday Blitz May 2 Late 2023"]
[White "Hajiyev, Kanan"]
[Black "Bryant, John Daniel"]
[WhiteFideId "13404148"]
[BlackFideId "2031280"]
[WhiteElo "2103"]
[BlackElo "2455"]
[Result "1-0"]
[Round "05"]
[TimeControl "180+2"]
[Date "2023.05.02"]
[WhiteClock "0:00:11"]
[BlackClock "0:00:01"]

1. d4 {[%clk 0:02:23]}  Nf6 {[%clk 0:02:57]} 2. Nf3 {[%clk 0:02:22]}  d5 {[%clk 0:02:53]} 3. c4 {[%clk 0:02:22]}  e6 {[%clk 0:02:53]} 4. cxd5 {[%clk 0:02:23]}  exd5 {[%clk 0:02:53]} 5. Nc3 {[%clk 0:02:23]}  c6 {[%clk 0:02:51]} 6. Qc2 {[%clk 0:02:22]}  g6 {[%clk 0:02:45]} 7. Bg5 {[%clk 0:02:22]}  Be7 {[%clk 0:02:25]} 8. e3 {[%clk 0:02:21]}  Bf5 {[%clk 0:02:23]} 9. Bd3 {[%clk 0:02:21]}  Bxd3 {[%clk 0:02:22]} 10. Qxd3 {[%clk 0:02:22]}  Nbd7 {[%clk 0:02:18]} 11. O-O {[%clk 0:02:22]}  O-O {[%clk 0:02:15]} 12. Rab1 {[%clk 0:02:21]}  a5 {[%clk 0:02:11]} 13. Qc2 {[%clk 0:02:18]}  Re8 {[%clk 0:01:45]} 14. Bf4 {[%clk 0:02:17]}  Nh5 {[%clk 0:01:33]} 15. Bh6 {[%clk 0:02:17]}  Ng7 {[%clk 0:01:27]} 16. h3 {[%clk 0:02:12]}  Nf5 {[%clk 0:01:23]} 17. Bf4 {[%clk 0:02:12]}  Bd6 {[%clk 0:01:23]} 18. Bxd6 {[%clk 0:01:56]}  Nxd6 {[%clk 0:01:24]} 19. a3 {[%clk 0:01:46]}  h5 {[%clk 0:01:20]} 20. Rfe1 {[%clk 0:01:42]}  Qe7 {[%clk 0:01:13]} 21. Na4 {[%clk 0:01:38]}  Qf6 {[%clk 0:00:41]} 22. Nc5 {[%clk 0:01:21]}  Nxc5 {[%clk 0:00:27]} 23. dxc5 {[%clk 0:01:22]}  Ne4 {[%clk 0:00:24]} 24. Nd4 {[%clk 0:01:15]}  Kh8 {[%clk 0:00:18]} 25. b4 {[%clk 0:01:14]}  axb4 {[%clk 0:00:18]} 26. axb4 {[%clk 0:01:15]}  g5 {[%clk 0:00:15]} 27. b5 {[%clk 0:01:15]}  g4 {[%clk 0:00:13]} 28. hxg4 {[%clk 0:01:04]}  hxg4 {[%clk 0:00:14]} 29. g3 {[%clk 0:01:04]}  Kg7 {[%clk 0:00:13]} 30. Kg2 {[%clk 0:01:04]}  Rh8 {[%clk 0:00:10]} 31. Rh1 {[%clk 0:01:03]}  Rh3 {[%clk 0:00:07]} 32. Rxh3 {[%clk 0:00:54]}  gxh3+ {[%clk 0:00:08]} 33. Kxh3 {[%clk 0:00:54]}  Nxf2+ {[%clk 0:00:08]} 34. Kg2 {[%clk 0:00:55]}  Ng4 {[%clk 0:00:07]} 35. Qe2 {[%clk 0:00:32]}  Qg5 {[%clk 0:00:07]} 36. bxc6 {[%clk 0:00:26]}  Nxe3+ {[%clk 0:00:06]} 37. Kf3 {[%clk 0:00:26]}  Ra3 {[%clk 0:00:06]} 38. Rb3 {[%clk 0:00:22]}  Rxb3 {[%clk 0:00:06]} 39. Nxb3 {[%clk 0:00:23]}  bxc6 {[%clk 0:00:06]} 40. Qxe3 {[%clk 0:00:23]}  Qf5+ {[%clk 0:00:07]} 41. Kg2 {[%clk 0:00:22]}  Qc2+ {[%clk 0:00:06]} 42. Kh3 {[%clk 0:00:22]}  Qf5+ {[%clk 0:00:05]} 43. Kh4 {[%clk 0:00:20]}  Qh7+ {[%clk 0:00:04]} 44. Kg4 {[%clk 0:00:20]}  Qc2 {[%clk 0:00:03]} 45. Nd4 {[%clk 0:00:19]}  Qc4 {[%clk 0:00:03]} 46. Qg5+ {[%clk 0:00:17]}  Kf8 {[%clk 0:00:04]} 47. Qf4 {[%clk 0:00:16]}  Kg8 {[%clk 0:00:03]} 48. Nf5 {[%clk 0:00:10]}  Qxc5 {[%clk 0:00:03]} 49. Qg5+ {[%clk 0:00:11]}  Kf8 {[%clk 0:00:01]} 50. Qd8# {[%clk 0:00:11]} 1-0


[Site "https://www.chess.com"]

[Event "Titled Tuesday Blitz May 2 Late 2023"]
[White "Gutkin, Ilya"]
[Black "Bilych, Olexiy"]
[WhiteFideId "16203470"]
[BlackFideId "14156504"]
[WhiteElo "2265"]
[BlackElo "2320"]
[Result "1-0"]
[Round "05"]
[TimeControl "180+2"]
[Date "2023.05.02"]
[WhiteClock "0:00:04"]
[BlackClock "0:00:04"]

1. Nf3 {[%clk 0:03:00]}  d5 {[%clk 0:02:59]} 2. g3 {[%clk 0:03:01]}  Nf6 {[%clk 0:02:59]} 3. Bg2 {[%clk 0:03:01]}  Bf5 {[%clk 0:02:59]} 4. c4 {[%clk 0:03:00]}  e6 {[%clk 0:02:57]} 5. O-O {[%clk 0:02:56]}  c6 {[%clk 0:02:48]} 6. Qb3 {[%clk 0:02:56]}  Qb6 {[%clk 0:02:44]} 7. d3 {[%clk 0:02:55]}  h6 {[%clk 0:02:40]} 8. Be3 {[%clk 0:02:55]}  Qxb3 {[%clk 0:02:40]} 9. axb3 {[%clk 0:02:56]}  Na6 {[%clk 0:02:40]} 10. Nd4 {[%clk 0:02:54]}  Bh7 {[%clk 0:02:39]} 11. Nxc6 {[%clk 0:02:51]}  Bc5 {[%clk 0:02:15]} 12. Bxc5 {[%clk 0:02:29]}  Nxc5 {[%clk 0:02:16]} 13. Rxa7 {[%clk 0:02:28]}  O-O {[%clk 0:02:15]} 14. Rxa8 {[%clk 0:02:25]}  Rxa8 {[%clk 0:02:15]} 15. Nd4 {[%clk 0:02:17]}  e5 {[%clk 0:02:12]} 16. Nb5 {[%clk 0:02:16]}  e4 {[%clk 0:02:02]} 17. dxe4 {[%clk 0:01:54]}  dxe4 {[%clk 0:01:56]} 18. N1c3 {[%clk 0:01:29]}  Nxb3 {[%clk 0:01:54]} 19. Nd6 {[%clk 0:01:22]}  g5 {[%clk 0:00:47]} 20. Nxb7 {[%clk 0:00:54]}  Nd2 {[%clk 0:00:45]} 21. Rd1 {[%clk 0:00:48]}  Nxc4 {[%clk 0:00:46]} 22. b3 {[%clk 0:00:42]}  Ne5 {[%clk 0:00:41]} 23. Rd8+ {[%clk 0:00:34]}  Rxd8 {[%clk 0:00:39]} 24. Nxd8 {[%clk 0:00:35]}  Kf8 {[%clk 0:00:39]} 25. Nb7 {[%clk 0:00:35]}  Ke7 {[%clk 0:00:37]} 26. Nc5 {[%clk 0:00:35]}  e3 {[%clk 0:00:24]} 27. fxe3 {[%clk 0:00:33]}  Neg4 {[%clk 0:00:24]} 28. e4 {[%clk 0:00:32]}  Kd6 {[%clk 0:00:23]} 29. Nd3 {[%clk 0:00:29]}  Nd7 {[%clk 0:00:20]} 30. Bh3 {[%clk 0:00:24]}  h5 {[%clk 0:00:15]} 31. Bxg4 {[%clk 0:00:22]}  hxg4 {[%clk 0:00:16]} 32. Kf2 {[%clk 0:00:22]}  f6 {[%clk 0:00:11]} 33. Ke3 {[%clk 0:00:21]}  Bg8 {[%clk 0:00:12]} 34. b4 {[%clk 0:00:19]}  Bb3 {[%clk 0:00:12]} 35. Kd4 {[%clk 0:00:16]}  Bc2 {[%clk 0:00:11]} 36. Nb5+ {[%clk 0:00:13]}  Kc6 {[%clk 0:00:10]} 37. Nc3 {[%clk 0:00:13]}  Kd6 {[%clk 0:00:10]} 38. b5 {[%clk 0:00:11]}  Bb3 {[%clk 0:00:08]} 39. Nd5 {[%clk 0:00:09]}  Ba2 {[%clk 0:00:04]} 40. Nxf6 {[%clk 0:00:05]}  Nb6 {[%clk 0:00:01]} 41. e5+ {[%clk 0:00:05]}  Ke6 {[%clk 0:00:02]} 42. Ne4 {[%clk 0:00:05]}  Bb1 {[%clk 0:00:02]} 43. Nxg5+ {[%clk 0:00:04]}  Kf5 {[%clk 0:00:02]} 44. Ne4 {[%clk 0:00:04]}  Ba2 {[%clk 0:00:02]} 45. Nd6+ {[%clk 0:00:03]}  Ke6 {[%clk 0:00:02]} 46. Nc5+ {[%clk 0:00:03]}  Ke7 {[%clk 0:00:03]} 47. e4 {[%clk 0:00:02]}  Na8 {[%clk 0:00:02]} 48. Nf5+ {[%clk 0:00:03]}  Kf7 {[%clk 0:00:02]} 49. e6+ {[%clk 0:00:04]}  Kf6 {[%clk 0:00:03]} 50. e7 {[%clk 0:00:04]}  Nc7 {[%clk 0:00:02]} 51. b6 {[%clk 0:00:03]}  Nb5+ {[%clk 0:00:03]} 52. Kd3 {[%clk 0:00:03]}  Kf7 {[%clk 0:00:03]} 53. b7 {[%clk 0:00:03]}  Bb1+ {[%clk 0:00:01]} 54. Ke3 {[%clk 0:00:02]}  Nc3 {[%clk 0:00:02]} 55. b8=Q {[%clk 0:00:02]}  Nd1+ {[%clk 0:00:02]} 56. Kf4 {[%clk 0:00:03]}  Nf2 {[%clk 0:00:03]} 57. Qf8+ {[%clk 0:00:03]}  Kg6 {[%clk 0:00:04]} 58. e8=Q+ {[%clk 0:00:04]}  Kh7 {[%clk 0:00:04]} 59. Qh5# {[%clk 0:00:04]} 1-0


[Site "https://www.chess.com"]

[Event "Titled Tuesday Blitz May 2 Late 2023"]
[White "Buchenau, Frank"]
[Black "Halkias, Stelios"]
[WhiteFideId "4604350"]
[BlackFideId "4201809"]
[WhiteElo "2157"]
[BlackElo "2451"]
[Result "0-1"]
[Round "05"]
[TimeControl "180+2"]
[Date "2023.05.02"]
[WhiteClock "0:00:01"]
[BlackClock "0:00:08"]

1. e4 {[%clk 0:02:59]}  e5 {[%clk 0:02:59]} 2. Nf3 {[%clk 0:02:58]}  Nc6 {[%clk 0:02:59]} 3. Bc4 {[%clk 0:02:58]}  Bc5 {[%clk 0:02:59]} 4. c3 {[%clk 0:02:58]}  Nf6 {[%clk 0:02:58]} 5. d3 {[%clk 0:02:58]}  d6 {[%clk 0:02:58]} 6. O-O {[%clk 0:02:58]}  h6 {[%clk 0:02:57]} 7. a4 {[%clk 0:02:56]}  a5 {[%clk 0:02:56]} 8. Na3 {[%clk 0:02:54]}  O-O {[%clk 0:02:55]} 9. Nc2 {[%clk 0:02:53]}  Bb6 {[%clk 0:02:54]} 10. Re1 {[%clk 0:02:52]}  Be6 {[%clk 0:02:51]} 11. Bb5 {[%clk 0:02:43]}  Ne7 {[%clk 0:02:48]} 12. d4 {[%clk 0:02:39]}  Ng6 {[%clk 0:02:45]} 13. h3 {[%clk 0:02:20]}  c6 {[%clk 0:02:42]} 14. Bf1 {[%clk 0:02:12]}  Re8 {[%clk 0:02:34]} 15. Be3 {[%clk 0:02:10]}  Nxe4 {[%clk 0:02:09]} 16. dxe5 {[%clk 0:02:08]}  Bxe3 {[%clk 0:02:03]} 17. Rxe3 {[%clk 0:02:05]}  d5 {[%clk 0:02:02]} 18. Bd3 {[%clk 0:01:51]}  Qc7 {[%clk 0:01:47]} 19. Bxe4 {[%clk 0:01:37]}  dxe4 {[%clk 0:01:46]} 20. Rxe4 {[%clk 0:01:37]}  Bd5 {[%clk 0:01:43]} 21. Re3 {[%clk 0:01:33]}  Rad8 {[%clk 0:01:43]} 22. Ncd4 {[%clk 0:01:25]}  Nxe5 {[%clk 0:01:39]} 23. Nxe5 {[%clk 0:01:23]}  Rxe5 {[%clk 0:01:39]} 24. Rxe5 {[%clk 0:01:16]}  Qxe5 {[%clk 0:01:38]} 25. Qg4 {[%clk 0:01:06]}  Re8 {[%clk 0:01:31]} 26. Rd1 {[%clk 0:00:49]}  h5 {[%clk 0:01:15]} 27. Qh4 {[%clk 0:00:37]}  g6 {[%clk 0:01:10]} 28. f4 {[%clk 0:00:27]}  Qe4 {[%clk 0:00:42]} 29. Qf2 {[%clk 0:00:26]}  Kg7 {[%clk 0:00:40]} 30. f5 {[%clk 0:00:26]}  Qe5 {[%clk 0:00:36]} 31. Rf1 {[%clk 0:00:25]}  Qf6 {[%clk 0:00:29]} 32. Qd2 {[%clk 0:00:23]}  g5 {[%clk 0:00:27]} 33. Qd1 {[%clk 0:00:15]}  Kh6 {[%clk 0:00:25]} 34. Qd2 {[%clk 0:00:15]}  Re4 {[%clk 0:00:23]} 35. Qd1 {[%clk 0:00:12]}  Qe5 {[%clk 0:00:22]} 36. Qd2 {[%clk 0:00:11]}  Re3 {[%clk 0:00:21]} 37. Qf2 {[%clk 0:00:11]}  Qe4 {[%clk 0:00:20]} 38. f6 {[%clk 0:00:10]}  Kg6 {[%clk 0:00:20]} 39. Qf5+ {[%clk 0:00:08]}  Qxf5 {[%clk 0:00:19]} 40. Nxf5 {[%clk 0:00:08]}  Re2 {[%clk 0:00:16]} 41. Ne7+ {[%clk 0:00:09]}  Kh7 {[%clk 0:00:16]} 42. Nxd5 {[%clk 0:00:08]}  cxd5 {[%clk 0:00:17]} 43. Rf5 {[%clk 0:00:08]}  Kg6 {[%clk 0:00:17]} 44. Rxd5 {[%clk 0:00:08]}  Rxb2 {[%clk 0:00:17]} 45. Rxa5 {[%clk 0:00:07]}  Kxf6 {[%clk 0:00:13]} 46. c4 {[%clk 0:00:06]}  Rc2 {[%clk 0:00:12]} 47. c5 {[%clk 0:00:06]}  Rc4 {[%clk 0:00:11]} 48. Rb5 {[%clk 0:00:05]}  g4 {[%clk 0:00:11]} 49. Rb6+ {[%clk 0:00:05]}  Kg5 {[%clk 0:00:11]} 50. hxg4 {[%clk 0:00:06]}  hxg4 {[%clk 0:00:11]} 51. Rxb7 {[%clk 0:00:04]}  f5 {[%clk 0:00:12]} 52. Ra7 {[%clk 0:00:03]}  g3 {[%clk 0:00:10]} 53. Kf1 {[%clk 0:00:02]}  Kf4 {[%clk 0:00:10]} 54. Ke2 {[%clk 0:00:02]}  Rc2+ {[%clk 0:00:10]} 55. Kd3 {[%clk 0:00:02]}  Rxc5 {[%clk 0:00:08]} 56. Rb7 {[%clk 0:00:01]}  Rc1 {[%clk 0:00:07]} 57. Rb4+ {[%clk 0:00:01]}  Kg5 {[%clk 0:00:08]} 58. a5 {[%clk 0:00:01]}  Ra1 {[%clk 0:00:08]} 59. Rb5 {[%clk 0:00:01]}  Ra2 {[%clk 0:00:08]} 0-1


[Site "https://www.chess.com"]

[Event "Titled Tuesday Blitz May 2 Late 2023"]
[White "Domingo Nunez, Ruben"]
[Black "Rodshtein, Maxim"]
[WhiteFideId "22245570"]
[BlackFideId "2806851"]
[WhiteElo "2404"]
[BlackElo "2555"]
[Result "0-1"]
[Round "05"]
[TimeControl "180+2"]
[Date "2023.05.02"]
[WhiteClock "0:00:01"]
[BlackClock "0:00:10"]

1. e4 {[%clk 0:02:59]}  g6 {[%clk 0:02:59]} 2. h4 {[%clk 0:02:59]}  Nf6 {[%clk 0:02:58]} 3. e5 {[%clk 0:02:59]}  Nh5 {[%clk 0:02:59]} 4. b3 {[%clk 0:02:58]}  d6 {[%clk 0:02:56]} 5. Bb2 {[%clk 0:02:58]}  dxe5 {[%clk 0:02:55]} 6. Bxe5 {[%clk 0:02:59]}  f6 {[%clk 0:02:36]} 7. Bb2 {[%clk 0:02:57]}  e5 {[%clk 0:02:35]} 8. g3 {[%clk 0:02:57]}  Nc6 {[%clk 0:02:32]} 9. Bg2 {[%clk 0:02:54]}  Bc5 {[%clk 0:02:31]} 10. Bf3 {[%clk 0:02:46]}  Ng7 {[%clk 0:02:25]} 11. h5 {[%clk 0:02:36]}  g5 {[%clk 0:02:21]} 12. h6 {[%clk 0:02:36]}  Nf5 {[%clk 0:02:19]} 13. Bh5+ {[%clk 0:02:35]}  Ke7 {[%clk 0:02:18]} 14. Bg4 {[%clk 0:02:24]}  Be6 {[%clk 0:01:56]} 15. d3 {[%clk 0:02:23]}  Qd7 {[%clk 0:01:56]} 16. Bxf5 {[%clk 0:02:19]}  Bxf5 {[%clk 0:01:55]} 17. Nd2 {[%clk 0:02:20]}  Nd4 {[%clk 0:01:39]} 18. Ne4 {[%clk 0:02:08]}  Bb6 {[%clk 0:01:31]} 19. Qd2 {[%clk 0:00:53]}  Qc6 {[%clk 0:00:58]} 20. O-O-O {[%clk 0:00:33]}  Bxe4 {[%clk 0:00:48]} 21. dxe4 {[%clk 0:00:34]}  Rad8 {[%clk 0:00:43]} 22. Qd3 {[%clk 0:00:25]}  Nb5 {[%clk 0:00:34]} 23. Qf3 {[%clk 0:00:14]}  Rxd1+ {[%clk 0:00:33]} 24. Kxd1 {[%clk 0:00:15]}  Rd8+ {[%clk 0:00:30]} 25. Kc1 {[%clk 0:00:16]}  Bd4 {[%clk 0:00:19]} 26. Ne2 {[%clk 0:00:14]}  Bxb2+ {[%clk 0:00:19]} 27. Kxb2 {[%clk 0:00:14]}  Rd2 {[%clk 0:00:19]} 28. Rc1 {[%clk 0:00:14]}  Rxe2 {[%clk 0:00:17]} 29. a4 {[%clk 0:00:11]}  Nd4 {[%clk 0:00:16]} 30. Qd3 {[%clk 0:00:08]}  Rxf2 {[%clk 0:00:15]} 31. Kb1 {[%clk 0:00:05]}  a5 {[%clk 0:00:14]} 32. c3 {[%clk 0:00:03]}  Nxb3 {[%clk 0:00:11]} 33. Rd1 {[%clk 0:00:04]}  Qd6 {[%clk 0:00:10]} 34. Qxd6+ {[%clk 0:00:01]}  cxd6 {[%clk 0:00:11]} 35. Rd4 {[%clk 0:00:01]}  exd4 {[%clk 0:00:10]} 0-1


[Site "https://www.chess.com"]

[Event "Titled Tuesday Blitz May 2 Late 2023"]
[White "Klenburg, Michael"]
[Black "Flores, Diego"]
[WhiteFideId "14102072"]
[BlackFideId "108049"]
[WhiteElo "2396"]
[BlackElo "2613"]
[Result "1/2-1/2"]
[Round "05"]
[TimeControl "180+2"]
[Date "2023.05.02"]
[WhiteClock "0:00:17"]
[BlackClock "0:00:18"]

1. Nf3 {[%clk 0:02:59]}  c5 {[%clk 0:02:56]} 2. g3 {[%clk 0:02:58]}  Nc6 {[%clk 0:02:54]} 3. Bg2 {[%clk 0:02:58]}  e5 {[%clk 0:02:54]} 4. d3 {[%clk 0:02:58]}  g6 {[%clk 0:02:54]} 5. O-O {[%clk 0:02:58]}  Bg7 {[%clk 0:02:54]} 6. c4 {[%clk 0:02:58]}  d6 {[%clk 0:02:53]} 7. Nc3 {[%clk 0:02:58]}  Nge7 {[%clk 0:02:52]} 8. Ne1 {[%clk 0:02:58]}  Be6 {[%clk 0:02:47]} 9. Nd5 {[%clk 0:02:57]}  O-O {[%clk 0:02:38]} 10. Nc2 {[%clk 0:02:57]}  Qd7 {[%clk 0:02:33]} 11. Re1 {[%clk 0:02:56]}  Rab8 {[%clk 0:02:26]} 12. Nce3 {[%clk 0:02:55]}  b5 {[%clk 0:02:24]} 13. Nxe7+ {[%clk 0:02:54]}  Nxe7 {[%clk 0:02:23]} 14. Nd5 {[%clk 0:02:54]}  Nxd5 {[%clk 0:02:15]} 15. cxd5 {[%clk 0:02:53]}  Bh3 {[%clk 0:02:15]} 16. e4 {[%clk 0:02:40]}  Bxg2 {[%clk 0:02:10]} 17. Kxg2 {[%clk 0:02:40]}  f5 {[%clk 0:02:10]} 18. f3 {[%clk 0:02:40]}  Rf7 {[%clk 0:01:54]} 19. Qe2 {[%clk 0:02:25]}  Rbf8 {[%clk 0:01:52]} 20. Rf1 {[%clk 0:02:20]}  h5 {[%clk 0:01:50]} 21. Bg5 {[%clk 0:02:19]}  a5 {[%clk 0:01:31]} 22. Qd2 {[%clk 0:02:11]}  Qa7 {[%clk 0:00:59]} 23. a4 {[%clk 0:02:05]}  b4 {[%clk 0:00:59]} 24. b3 {[%clk 0:02:05]}  Kh7 {[%clk 0:00:57]} 25. Rae1 {[%clk 0:02:03]}  Qd7 {[%clk 0:00:54]} 26. Qe2 {[%clk 0:02:00]}  Bh6 {[%clk 0:00:48]} 27. Bxh6 {[%clk 0:01:59]}  Kxh6 {[%clk 0:00:46]} 28. h3 {[%clk 0:01:43]}  Qe7 {[%clk 0:00:35]} 29. Qd2+ {[%clk 0:01:42]}  Kh7 {[%clk 0:00:31]} 30. Rc1 {[%clk 0:01:28]}  g5 {[%clk 0:00:26]} 31. Rce1 {[%clk 0:01:04]}  Kg6 {[%clk 0:00:26]} 32. Rc1 {[%clk 0:00:58]}  Rf6 {[%clk 0:00:26]} 33. Rce1 {[%clk 0:00:57]}  Qf7 {[%clk 0:00:26]} 34. Qe2 {[%clk 0:00:54]}  Kg7 {[%clk 0:00:25]} 35. Qd2 {[%clk 0:00:53]}  Qg6 {[%clk 0:00:25]} 36. Qe2 {[%clk 0:00:52]}  Kf7 {[%clk 0:00:26]} 37. Qd2 {[%clk 0:00:47]}  Ke7 {[%clk 0:00:26]} 38. Qe2 {[%clk 0:00:46]}  g4 {[%clk 0:00:25]} 39. hxg4 {[%clk 0:00:41]}  hxg4 {[%clk 0:00:23]} 40. fxg4 {[%clk 0:00:41]}  f4 {[%clk 0:00:21]} 41. gxf4 {[%clk 0:00:23]}  Rxf4 {[%clk 0:00:21]} 42. Rxf4 {[%clk 0:00:23]}  Rxf4 {[%clk 0:00:21]} 43. Kg3 {[%clk 0:00:23]}  Qg5 {[%clk 0:00:18]} 44. Rh1 {[%clk 0:00:23]}  Rf7 {[%clk 0:00:19]} 45. Rf1 {[%clk 0:00:20]}  Rf4 {[%clk 0:00:16]} 46. Rxf4 {[%clk 0:00:18]}  Qxf4+ {[%clk 0:00:16]} 47. Kg2 {[%clk 0:00:18]}  Kf6 {[%clk 0:00:17]} 48. Qf3 {[%clk 0:00:16]}  Kg5 {[%clk 0:00:18]} 49. Qxf4+ {[%clk 0:00:16]}  Kxf4 {[%clk 0:00:18]} 50. g5 {[%clk 0:00:16]}  Kxg5 {[%clk 0:00:18]} 51. Kg3 {[%clk 0:00:17]}  Kh5 {[%clk 0:00:18]} 52. Kh3 {[%clk 0:00:17]}  Kg5 {[%clk 0:00:18]} 53. Kg3 {[%clk 0:00:17]}  Kh5 {[%clk 0:00:18]} 54. Kh3 {[%clk 0:00:17]}  Kg5 {[%clk 0:00:18]} 55. Kg3 {[%clk 0:00:17]} 1/2-1/2


[Site "https://www.chess.com"]

[Event "Titled Tuesday Blitz May 2 Late 2023"]
[White "Ballester Llagaria, Luis Eduardo"]
[Black "Makridis, Dimitrios"]
[WhiteFideId "2297620"]
[BlackFideId "25864475"]
[WhiteElo "2344"]
[BlackElo "2277"]
[Result "0-1"]
[Round "05"]
[TimeControl "180+2"]
[Date "2023.05.02"]
[WhiteClock "0:00:23"]
[BlackClock "0:01:02"]

1. e4 {[%clk 0:02:56]}  c5 {[%clk 0:02:58]} 2. Nc3 {[%clk 0:02:56]}  d6 {[%clk 0:02:30]} 3. d4 {[%clk 0:02:54]}  cxd4 {[%clk 0:02:30]} 4. Qxd4 {[%clk 0:02:54]}  Nc6 {[%clk 0:02:29]} 5. Qd2 {[%clk 0:02:54]}  g6 {[%clk 0:02:27]} 6. b3 {[%clk 0:02:55]}  Bh6 {[%clk 0:02:27]} 7. f4 {[%clk 0:02:55]}  e5 {[%clk 0:02:27]} 8. g3 {[%clk 0:02:55]}  Nf6 {[%clk 0:02:21]} 9. Bb2 {[%clk 0:02:54]}  exf4 {[%clk 0:02:22]} 10. O-O-O {[%clk 0:02:33]}  O-O {[%clk 0:02:17]} 11. gxf4 {[%clk 0:02:22]}  Re8 {[%clk 0:02:10]} 12. Bd3 {[%clk 0:02:16]}  d5 {[%clk 0:02:04]} 13. Nxd5 {[%clk 0:02:09]}  Nxd5 {[%clk 0:02:05]} 14. exd5 {[%clk 0:02:09]}  Qxd5 {[%clk 0:02:05]} 15. Ne2 {[%clk 0:01:55]}  Qc5 {[%clk 0:01:44]} 16. Kb1 {[%clk 0:01:39]}  Bg4 {[%clk 0:01:38]} 17. Rhg1 {[%clk 0:01:13]}  Bxe2 {[%clk 0:01:34]} 18. Bxe2 {[%clk 0:01:14]}  Bxf4 {[%clk 0:01:34]} 19. Qxf4 {[%clk 0:01:11]}  Rxe2 {[%clk 0:01:31]} 20. Qf6 {[%clk 0:01:04]}  Qxc2+ {[%clk 0:01:31]} 21. Ka1 {[%clk 0:01:04]}  Ne5 {[%clk 0:01:32]} 22. Rd8+ {[%clk 0:00:32]}  Rxd8 {[%clk 0:01:28]} 23. Qxd8+ {[%clk 0:00:33]}  Kg7 {[%clk 0:01:29]} 24. Qd4 {[%clk 0:00:33]}  f6 {[%clk 0:01:26]} 25. Rc1 {[%clk 0:00:31]}  Qe4 {[%clk 0:01:17]} 26. Qxa7 {[%clk 0:00:23]}  Nd3 {[%clk 0:01:02]} 0-1


[Site "https://www.chess.com"]

[Event "Titled Tuesday Blitz May 2 Late 2023"]
[White "Perske, Thore"]
[Black "Samsonkin, Artiom"]
[WhiteFideId "12902195"]
[BlackFideId "13503111"]
[WhiteElo "2336"]
[BlackElo "2524"]
[Result "0-1"]
[Round "05"]
[TimeControl "180+2"]
[Date "2023.05.02"]
[WhiteClock "0:00:01"]
[BlackClock "0:00:28"]

1. d4 {[%clk 0:02:57]}  Nf6 {[%clk 0:02:58]} 2. g3 {[%clk 0:02:55]}  e6 {[%clk 0:02:59]} 3. Bg2 {[%clk 0:02:55]}  d5 {[%clk 0:02:57]} 4. Nf3 {[%clk 0:02:55]}  Be7 {[%clk 0:02:56]} 5. O-O {[%clk 0:02:55]}  O-O {[%clk 0:02:57]} 6. c4 {[%clk 0:02:56]}  dxc4 {[%clk 0:02:57]} 7. Qc2 {[%clk 0:02:56]}  b5 {[%clk 0:02:55]} 8. a4 {[%clk 0:02:55]}  b4 {[%clk 0:02:52]} 9. Nbd2 {[%clk 0:02:53]}  Bb7 {[%clk 0:02:24]} 10. e4 {[%clk 0:02:28]}  c3 {[%clk 0:02:18]} 11. bxc3 {[%clk 0:02:28]}  bxc3 {[%clk 0:02:18]} 12. Qxc3 {[%clk 0:02:14]}  Nxe4 {[%clk 0:02:19]} 13. Qc2 {[%clk 0:02:11]}  Nf6 {[%clk 0:02:13]} 14. Rb1 {[%clk 0:02:06]}  Bd5 {[%clk 0:02:11]} 15. Nc4 {[%clk 0:01:52]}  Be4 {[%clk 0:02:03]} 16. Qb2 {[%clk 0:01:45]}  Nc6 {[%clk 0:01:57]} 17. Ra1 {[%clk 0:01:38]}  Rb8 {[%clk 0:01:56]} 18. Qc3 {[%clk 0:01:38]}  Nd5 {[%clk 0:01:49]} 19. Qd2 {[%clk 0:01:38]}  Bb4 {[%clk 0:01:47]} 20. Qe2 {[%clk 0:01:24]}  Nc3 {[%clk 0:01:34]} 21. Qe3 {[%clk 0:01:22]}  Bxf3 {[%clk 0:01:26]} 22. Bxf3 {[%clk 0:01:18]}  Nxd4 {[%clk 0:01:24]} 23. Bb2 {[%clk 0:00:33]}  Nxf3+ {[%clk 0:00:57]} 24. Qxf3 {[%clk 0:00:32]}  Qd5 {[%clk 0:00:58]} 25. Qxd5 {[%clk 0:00:24]}  exd5 {[%clk 0:00:58]} 26. Ne5 {[%clk 0:00:19]}  Ne2+ {[%clk 0:00:58]} 27. Kg2 {[%clk 0:00:18]}  Bd6 {[%clk 0:00:59]} 28. Nd3 {[%clk 0:00:17]}  Rb3 {[%clk 0:00:59]} 29. Rfd1 {[%clk 0:00:17]}  Rfb8 {[%clk 0:00:56]} 30. Be5 {[%clk 0:00:14]}  Nc3 {[%clk 0:00:41]} 31. Re1 {[%clk 0:00:08]}  Ne4 {[%clk 0:00:39]} 32. Bxd6 {[%clk 0:00:07]}  Rxd3 {[%clk 0:00:36]} 33. Bxc7 {[%clk 0:00:07]}  Rb2 {[%clk 0:00:37]} 34. Rf1 {[%clk 0:00:04]}  Rdd2 {[%clk 0:00:37]} 35. Bf4 {[%clk 0:00:03]}  Rxf2+ {[%clk 0:00:35]} 36. Rxf2 {[%clk 0:00:03]}  Nxf2 {[%clk 0:00:36]} 37. Kf3 {[%clk 0:00:01]}  Ne4 {[%clk 0:00:37]} 38. Rc1 {[%clk 0:00:01]}  f6 {[%clk 0:00:33]} 39. Rc7 {[%clk 0:00:01]}  Rf2+ {[%clk 0:00:28]} 40. Kg4 {[%clk 0:00:01]}  Ra2 {[%clk 0:00:29]} 41. Rb7 {[%clk 0:00:01]}  Rxa4 {[%clk 0:00:28]} 0-1


[Site "https://www.chess.com"]

[Event "Titled Tuesday Blitz May 2 Late 2023"]
[White "Ashraf, Artin"]
[Black "Aggelis, Nikolaos"]
[WhiteFideId "22514805"]
[BlackFideId "4213220"]
[WhiteElo "2188"]
[BlackElo "2189"]
[Result "1-0"]
[Round "05"]
[TimeControl "180+2"]
[Date "2023.05.02"]
[WhiteClock "0:00:02"]
[BlackClock "0:00:16"]

1. Nf3 {[%clk 0:02:59]}  Nf6 {[%clk 0:02:00]} 2. e3 {[%clk 0:02:55]}  g6 {[%clk 0:02:00]} 3. d4 {[%clk 0:02:54]}  Bg7 {[%clk 0:02:01]} 4. c4 {[%clk 0:02:54]}  O-O {[%clk 0:02:02]} 5. Be2 {[%clk 0:02:54]}  d5 {[%clk 0:02:01]} 6. cxd5 {[%clk 0:02:52]}  Nxd5 {[%clk 0:02:02]} 7. e4 {[%clk 0:02:51]}  Nb6 {[%clk 0:02:03]} 8. h3 {[%clk 0:02:47]}  e5 {[%clk 0:01:57]} 9. Nxe5 {[%clk 0:02:31]}  c5 {[%clk 0:01:57]} 10. O-O {[%clk 0:02:26]}  cxd4 {[%clk 0:01:55]} 11. Nd3 {[%clk 0:02:26]}  Nc6 {[%clk 0:01:54]} 12. Nd2 {[%clk 0:02:27]}  Re8 {[%clk 0:01:50]} 13. f4 {[%clk 0:02:26]}  a5 {[%clk 0:01:29]} 14. e5 {[%clk 0:02:17]}  Nd5 {[%clk 0:01:26]} 15. Ne4 {[%clk 0:02:14]}  Ne3 {[%clk 0:01:14]} 16. Bxe3 {[%clk 0:02:12]}  dxe3 {[%clk 0:01:15]} 17. Nd6 {[%clk 0:02:12]}  Rf8 {[%clk 0:01:15]} 18. Kh2 {[%clk 0:01:23]}  a4 {[%clk 0:01:02]} 19. Rc1 {[%clk 0:01:21]}  f6 {[%clk 0:01:02]} 20. Nc5 {[%clk 0:01:01]}  fxe5 {[%clk 0:01:01]} 21. Qd5+ {[%clk 0:00:57]}  Kh8 {[%clk 0:01:01]} 22. Nf7+ {[%clk 0:00:55]}  Rxf7 {[%clk 0:01:01]} 23. Qxf7 {[%clk 0:00:54]}  exf4 {[%clk 0:01:01]} 24. Nxb7 {[%clk 0:00:41]}  Bxb7 {[%clk 0:01:00]} 25. Qxb7 {[%clk 0:00:42]}  Nd4 {[%clk 0:00:59]} 26. Rfd1 {[%clk 0:00:33]}  Rb8 {[%clk 0:00:56]} 27. Qe4 {[%clk 0:00:31]}  Qf6 {[%clk 0:00:55]} 28. Bf3 {[%clk 0:00:25]}  h5 {[%clk 0:00:52]} 29. Rxd4 {[%clk 0:00:24]}  Qxd4 {[%clk 0:00:51]} 30. Qxg6 {[%clk 0:00:24]}  Qf6 {[%clk 0:00:38]} 31. Qxh5+ {[%clk 0:00:22]}  Qh6 {[%clk 0:00:38]} 32. Qf5 {[%clk 0:00:13]}  Qf6 {[%clk 0:00:37]} 33. Qe4 {[%clk 0:00:06]}  Qe5 {[%clk 0:00:30]} 34. Qg6 {[%clk 0:00:04]}  Qf6 {[%clk 0:00:30]} 35. Qg4 {[%clk 0:00:03]}  Qxb2 {[%clk 0:00:20]} 36. Qh5+ {[%clk 0:00:03]}  Kg8 {[%clk 0:00:16]} 37. Bd5+ {[%clk 0:00:02]}  Kf8 {[%clk 0:00:16]} 38. Qf7# {[%clk 0:00:02]} 1-0


[Site "https://www.chess.com"]